bitfinex/quotes_BTCUSD_20220211
["timestamp","ask_amount","ask_price","bid_price","bid_amount"]
[1644543156769,0.19764906,43342.0,43341.0,0.16541259]
[1644543156966,0.19712213,43342.0,43341.0,0.16541259]
[1644543157421,0.19712213,43342.0,43341.0,0.45483647]
[1644543157817,0.19712213,43342.0,43341.0,0.55483647]
[1644543158619,0.19712213,43342.0,43341.0,0.53983647]
[1644543160221,0.19712213,43342.0,43341.0,0.25041259]
[1644543160421,0.19763514,43344.0,43341.0,0.15041259]
[1644543160621,0.19712213,43344.0,43342.0,0.38196794]
[1644543160825,0.29562322,43349.0,43345.0,0.41820542]
[1644543161023,0.06919552,43356.0,43347.0,0.115399]
[1644543161024,0.29562322,43350.0,43347.0,0.115399]
[1644543161275,0.29562322,43354.0,43349.0,0.34404394]
[1644543161473,0.29562322,43355.0,43351.0,0.04867725]
[1644543161674,0.29562322,43355.0,43354.0,0.07881545]
[1644543162075,0.29562322,43356.0,43354.0,0.410736]
[1644543162274,0.29561245,43356.0,43355.0,0.29299187]
[1644543163173,0.34489376,43358.0,43354.0,0.3307605]
[1644543163377,0.5526216,43357.0,43355.0,0.173084]
[1644543163574,0.53259559,43356.0,43355.0,0.02712537]
[1644543164925,0.53127284,43356.0,43355.0,0.08481237]
[1644543165218,0.53259559,43356.0,43348.0,0.20557933]
[1644543165419,0.29561477,43352.0,43347.0,0.2615119]
[1644543165619,0.29561477,43351.0,43347.0,0.3615119]
[1644543165819,0.29561477,43351.0,43347.0,0.1615119]
[1644543166023,0.3448839,43351.0,43348.0,0.17311]
[1644543166222,0.34620665,43349.0,43348.0,0.17311]
[1644543166620,0.34620665,43349.0,43347.0,0.173111]
[1644543166827,0.34620665,43349.0,43333.0,0.17884261]
[1644543166828,0.78498091,43348.0,43333.0,0.17884261]
[1644543167026,0.29567236,43343.0,43333.0,0.19912388]
[1644543167225,0.29567236,43342.0,43333.0,0.02028127]
[1644543167421,0.29567236,43342.0,43335.0,0.0577262]
[1644543167820,0.36279458,43337.0,43335.0,0.0577262]
[1644543168022,0.36279458,43337.0,43336.0,0.115451]
[1644543168223,0.0005159,43341.0,43336.0,0.215451]
[1644543168422,0.0005159,43341.0,43336.0,0.27317274]
[1644543168671,0.0005159,43341.0,43336.0,0.55944094]
[1644543168873,0.0005159,43341.0,43336.0,0.27317274]
[1644543169075,0.29567236,43342.0,43337.0,0.115437]
[1644543169275,0.30797752,43340.0,43338.0,0.05]
[1644543169573,0.30797752,43340.0,43338.0,0.05772008]
[1644543169778,0.55440096,43340.0,43338.0,0.05772008]
[1644543170378,0.24642344,43339.0,43338.0,0.05772008]
[1644543170577,0.55440096,43340.0,43338.0,0.05772008]
[1644543170977,0.55440096,43340.0,43338.0,0.22315908]
[1644543171180,0.24642344,43340.0,43338.0,0.22315908]
[1644543172430,0.1971608,43339.0,43338.0,0.22315908]
[1644543172624,0.33278304,43343.0,43338.0,0.22315908]
[1644543172625,0.24642344,43340.0,43338.0,0.22315908]
[1644543172822,0.24642344,43339.0,43338.0,0.22315908]
[1644543174021,0.24642344,43340.0,43338.0,0.22315908]
[1644543174220,0.24642344,43339.0,43338.0,0.22315908]
[1644543174422,0.29567236,43340.0,43338.0,0.22315908]
[1644543174821,0.29618826,43341.0,43338.0,0.22315908]
[1644543175026,0.24646809,43339.0,43338.0,0.28088208]
[1644543175222,0.24646809,43339.0,43338.0,0.22315908]
[1644543176021,0.29618827,43341.0,43338.0,0.22315908]
[1644543176273,0.29567236,43341.0,43339.0,0.115442]
[1644543176472,0.29618827,43341.0,43339.0,0.115442]
[1644543176673,0.29567236,43340.0,43339.0,0.165442]
[1644543177375,0.29567236,43340.0,43336.0,0.03551933]
[1644543177580,0.24647477,43338.0,43336.0,0.03551933]
[1644543177774,0.24647477,43337.0,43336.0,0.03551933]
[1644543178173,0.24647477,43338.0,43336.0,0.03551933]
[1644543178673,0.24647477,43338.0,43336.0,0.37470808]
[1644543178874,0.24647477,43338.0,43337.0,0.08714944]
[1644543179277,0.24647477,43338.0,43337.0,0.13714944]
[1644543179676,0.24699068,43339.0,43337.0,0.13714944]
[1644543179925,0.24647477,43339.0,43337.0,0.13714944]
[1644543180722,0.24647477,43339.0,43337.0,0.25258244]
[1644543180921,0.24647477,43339.0,43337.0,0.42572891]
[1644543181333,0.23131579,43341.0,43338.0,1.08519569]
[1644543181529,0.20344434,43351.0,43341.0,1.23651844]
[1644543181530,0.29567236,43348.0,43341.0,1.23651844]
[1644543181726,0.20344434,43351.0,43341.0,1.23651844]
[1644543181727,0.29567236,43349.0,43347.0,0.08550589]
[1644543181924,0.34495108,43351.0,43347.0,0.14320289]
[1644543181925,0.29567236,43351.0,43347.0,0.14320289]
[1644543182124,0.29567236,43351.0,43348.0,0.30847642]
[1644543182325,0.29567236,43352.0,43348.0,0.64942987]
[1644543182727,0.29567236,43352.0,43348.0,0.70712487]
[1644543182926,0.29567236,43353.0,43349.0,0.057695]
[1644543183124,0.29567236,43353.0,43349.0,0.28846219]
[1644543183325,0.29567236,43353.0,43350.0,0.115385]
[1644543183527,0.29567236,43354.0,43351.0,0.32595759]
[1644543183769,0.00055979,43353.0,43351.0,0.47595759]
[1644543184171,0.00055979,43353.0,43352.0,0.057692]
[1644543184671,0.29123215,43354.0,43352.0,0.057692]
[1644543184871,0.29123215,43354.0,43352.0,0.11538333]
[1644543185070,0.00055979,43355.0,43352.0,0.11538333]
[1644543185276,0.00055979,43355.0,43351.0,0.64903125]
[1644543185277,0.00055979,43355.0,43353.0,0.05]
[1644543185472,0.00055979,43355.0,43353.0,0.0961]
[1644543185973,0.34495108,43359.0,43358.0,0.30879103]
[1644543186173,0.34495108,43361.0,43358.0,0.30879103]
[1644543186473,0.34495108,43361.0,43360.0,0.08145439]
[1644543186871,0.34495108,43361.0,43358.0,0.30879103]
[1644543187171,0.34495108,43361.0,43358.0,0.15]
[1644543187437,0.37096543,43363.0,43359.0,0.057687]
[1644543187438,0.34781687,43363.0,43359.0,0.057687]
[1644543187630,0.34781687,43363.0,43360.0,0.05768676]
[1644543187836,0.34781687,43363.0,43361.0,0.115375]
[1644543188036,0.00286579,43363.0,43361.0,0.115375]
[1644543188233,0.00246082,43363.0,43362.0,0.43138966]
[1644543188631,0.00246082,43363.0,43362.0,0.53138966]
[1644543189034,0.00246082,43363.0,43362.0,0.84508752]
[1644543189235,0.00246082,43363.0,43362.0,0.15]
[1644543189635,0.00246082,43363.0,43361.0,0.1730565]
[1644543189834,0.00246082,43363.0,43361.0,0.115375]
[1644543190638,0.00246082,43363.0,43355.0,0.5]
[1644543190639,0.37486775,43362.0,43355.0,0.5]
[1644543190841,0.00246082,43363.0,43355.0,0.5]
[1644543190842,0.00132275,43356.0,43355.0,0.5]
[1644543191035,0.32486775,43356.0,43355.0,0.5]
[1644543191282,0.32486775,43356.0,43344.0,0.02006999]
[1644543191283,0.3447732,43360.0,43354.0,0.115409]
[1644543191477,0.2462567,43355.0,43354.0,0.115409]
[1644543192074,0.2462567,43355.0,43354.0,0.215409]
[1644543192575,0.29548241,43357.0,43356.0,0.057698]
[1644543192775,0.29548241,43357.0,43356.0,0.115395]
[1644543193176,0.29548241,43358.0,43356.0,0.115395]
[1644543193375,0.29548241,43358.0,43356.0,0.057698]
[1644543193575,0.29548241,43357.0,43356.0,0.057698]
[1644543194077,0.29680516,43357.0,43356.0,0.057698]
[1644543194277,0.00132275,43357.0,43356.0,0.057698]
[1644543194480,0.29548433,43357.0,43356.0,0.057698]
[1644543194679,0.24622144,43357.0,43356.0,0.057698]
[1644543194932,0.24622144,43358.0,43356.0,0.147288]
[1644543195326,0.24676311,43359.0,43357.0,0.30352134]
[1644543195531,0.24622144,43359.0,43357.0,0.30352134]
[1644543195728,0.2467631,43359.0,43357.0,0.62658134]
[1644543196128,0.00054166,43359.0,43357.0,0.68426734]
[1644543196329,0.19694384,43358.0,43357.0,0.68426734]
[1644543196530,0.1974855,43359.0,43357.0,0.68426734]
[1644543196730,0.19694384,43359.0,43357.0,0.68426734]
[1644543196934,0.00054166,43360.0,43357.0,0.93294459]
[1644543197132,0.3447732,43368.0,43360.0,0.80767196]
[1644543197133,0.24622144,43365.0,43360.0,0.80767196]
[1644543197434,0.24622144,43367.0,43366.0,0.36000291]
[1644543197630,0.29548433,43369.0,43366.0,0.36000291]
[1644543197830,0.3447732,43371.0,43366.0,0.82895812]
[1644543197831,0.24611315,43368.0,43366.0,0.82895812]
[1644543198036,0.24611315,43368.0,43367.0,0.216173]
[1644543198232,0.29548433,43370.0,43367.0,0.216173]
[1644543198233,0.24611315,43370.0,43367.0,0.216173]
[1644543199275,0.24611315,43370.0,43367.0,0.331518]
[1644543199675,0.24611315,43370.0,43367.0,0.431518]
[1644543199876,0.24611315,43370.0,43367.0,0.489191]
[1644543200179,0.24611315,43371.0,43368.0,0.11533763]
[1644543200377,0.24611315,43371.0,43369.0,0.223002]
[1644543200778,0.24611315,43372.0,43369.0,0.223002]
[1644543200982,0.24611315,43374.0,43369.0,0.223002]
[1644543201178,0.5203,43377.0,43369.0,0.223002]
[1644543201179,0.24611315,43375.0,43374.0,0.20102187]
[1644543201382,0.24611315,43376.0,43374.0,0.31634887]
[1644543201583,0.24611315,43378.0,43375.0,0.32254263]
[1644543201782,0.24611315,43380.0,43375.0,0.70773832]
[1644543201982,0.24611315,43382.0,43380.0,0.07957899]
[1644543202179,0.24611315,43384.0,43380.0,0.07957899]
[1644543202436,0.24611315,43384.0,43381.0,0.172962]
[1644543202828,0.24611315,43385.0,43382.0,0.36365861]
[1644543203027,0.00057848,43384.0,43382.0,0.41365861]
[1644543203232,0.00057848,43384.0,43382.0,0.51365861]
[1644543203429,0.00057848,43384.0,43382.0,0.62896061]
[1644543203627,0.00057848,43384.0,43382.0,0.68661261]
[1644543204031,0.01,43389.0,43385.0,0.23651844]
[1644543204235,0.24611315,43392.0,43388.0,0.06517462]
[1644543204432,0.29548433,43398.0,43391.0,0.10630225]
[1644543204633,0.01904216,43404.0,43398.0,0.26945025]
[1644543204634,0.3447732,43402.0,43398.0,0.26945025]
[1644543204830,0.3447732,43402.0,43396.0,0.08821922]
[1644543204831,0.36381536,43404.0,43396.0,0.21559991]
[1644543205030,0.01904216,43404.0,43401.0,0.21504367]
[1644543205230,0.01904216,43404.0,43402.0,0.05]
[1644543205432,0.01,43409.0,43402.0,0.05]
[1644543205632,0.3447732,43413.0,43403.0,0.8151]
[1644543205833,0.3447732,43415.0,43409.0,0.05761002]
[1644543206029,0.3447732,43414.0,43405.0,0.107608]
[1644543206274,0.3447732,43414.0,43408.0,0.2048394]
[1644543206475,0.00132275,43417.0,43409.0,0.37736645]
[1644543206476,0.3447732,43416.0,43409.0,0.37736645]
[1644543206676,0.00055967,43414.0,43407.0,0.218941]
[1644543206878,0.323545,43413.0,43410.0,0.057614]
[1644543207075,0.00055967,43414.0,43408.0,0.115228]
[1644543207076,0.323545,43411.0,43408.0,0.115228]
[1644543207275,0.3438459,43412.0,43405.0,0.05]
[1644543207476,0.3438459,43412.0,43401.0,0.115247]
[1644543207477,0.85,43411.0,43401.0,0.115247]
[1644543207676,0.32938655,43403.0,43402.0,0.0461]
[1644543208681,0.32938655,43403.0,43397.0,0.17995561]
[1644543208682,0.323545,43402.0,43397.0,0.17995561]
[1644543208881,0.00132275,43398.0,43397.0,0.057642]
[1644543209932,0.48356031,43400.0,43397.0,0.057642]
[1644543209933,0.2871444,43400.0,43397.0,0.057642]
[1644543210123,0.323545,43399.0,43397.0,0.057642]
[1644543210323,0.28770845,43400.0,43397.0,0.057642]
[1644543210523,0.00132275,43398.0,43397.0,0.057642]
[1644543211131,0.32486775,43398.0,43397.0,0.057642]
[1644543212126,0.00132275,43398.0,43397.0,0.057642]
[1644543212826,0.00056363,43400.0,43397.0,0.057642]
[1644543213226,0.00132275,43398.0,43397.0,0.057642]
[1644543213431,0.473545,43397.0,43395.0,0.42]
[1644543213677,0.39226664,43396.0,43395.0,0.42]
[1644543213871,0.39226664,43396.0,43394.0,0.42]
[1644543214071,0.323545,43395.0,43394.0,0.42]
[1644543214273,0.37486775,43395.0,43394.0,0.42]
[1644543214872,0.323545,43393.0,43388.0,0.057656]
[1644543215072,0.32486775,43389.0,43388.0,0.057656]
[1644543215272,0.00132275,43389.0,43388.0,0.057656]
[1644543216278,0.323545,43387.0,43386.0,0.115302]
[1644543216475,0.39226664,43387.0,43369.0,0.29833722]
[1644543216672,0.05,43389.0,43369.0,0.29107967]
[1644543216871,0.00132275,43378.0,43367.0,0.80784254]
[1644543217073,0.00132275,43378.0,43373.0,0.115338]
[1644543217273,0.3556468,43378.0,43373.0,0.115338]
[1644543217534,0.3556468,43378.0,43373.0,0.165338]
[1644543217736,0.00132275,43378.0,43373.0,0.215338]
[1644543218533,0.00184089,43378.0,43373.0,0.215338]
[1644543219039,0.00184089,43378.0,43377.0,0.3131772]
[1644543219235,0.00051814,43378.0,43377.0,0.3631772]
[1644543219434,0.00051814,43378.0,43377.0,0.44349895]
[1644543219636,0.00132275,43388.0,43378.0,0.11531]
[1644543219835,0.00040532,43380.0,43378.0,0.11531]
[1644543220237,0.00040532,43380.0,43379.0,0.28681157]
[1644543220536,0.00040532,43380.0,43379.0,0.48627438]
[1644543220838,0.0461,43387.0,43379.0,0.59392938]
[1644543221039,0.19641591,43393.0,43389.0,0.08485346]
[1644543221040,0.0461,43393.0,43389.0,0.08485346]
[1644543221280,0.4873,43394.0,43389.0,0.08485346]
[1644543221479,0.00132275,43395.0,43389.0,0.08485346]
[1644543221695,0.00132275,43395.0,43390.0,0.31381788]
[1644543222381,0.2160374,43398.0,43390.0,0.31381788]
[1644543222382,0.21287819,43398.0,43390.0,0.31381788]
[1644543222781,0.21287819,43398.0,43390.0,0.36381788]
[1644543222981,0.21287819,43398.0,43390.0,0.47910988]
[1644543223182,0.19641591,43397.0,43390.0,0.47910988]
[1644543223782,0.19641591,43397.0,43391.0,0.057646]
[1644543224383,0.19641591,43396.0,43391.0,0.057646]
[1644543225028,0.19641591,43396.0,43391.0,0.01651673]
[1644543225231,0.19641591,43396.0,43390.0,0.05]
[1644543225429,0.24536793,43398.0,43389.0,0.3146735]
[1644543225829,0.34601971,43398.0,43391.0,0.057646]
[1644543226833,0.56474135,43398.0,43391.0,0.057646]
[1644543227032,0.00057185,43397.0,43391.0,0.057646]
[1644543227233,0.323545,43396.0,43391.0,0.057646]
[1644543227434,0.34777548,43393.0,43391.0,0.057646]
[1644543227633,0.34777548,43393.0,43390.0,0.115292]
[1644543227832,0.34777548,43393.0,43390.0,0.165292]
[1644543228033,0.06872164,43392.0,43390.0,0.165292]
[1644543228233,0.32146178,43391.0,43390.0,0.165292]
[1644543228533,0.06872164,43392.0,43390.0,0.165292]
[1644543229381,0.34777548,43393.0,43390.0,0.165292]
[1644543229577,0.3314471,43391.0,43390.0,0.165292]
[1644543229980,0.3314471,43391.0,43390.0,0.115292]
[1644543230378,0.57681503,43391.0,43390.0,0.115292]
[1644543232179,0.3314471,43391.0,43390.0,0.115292]
[1644543232824,0.83673927,43392.0,43390.0,0.115292]
[1644543233023,0.29447263,43393.0,43390.0,0.115292]
[1644543233224,0.24574319,43392.0,43390.0,0.165292]
[1644543233423,0.24574319,43394.0,43390.0,0.165292]
[1644543233823,0.24574319,43394.0,43393.0,0.0863163]
[1644543234025,0.24574319,43394.0,43393.0,0.1363163]
[1644543235025,0.24574319,43394.0,43390.0,0.00671456]
[1644543235026,0.5,43393.0,43390.0,0.00671456]
[1644543235225,0.74574319,43393.0,43386.0,0.338227]
[1644543235427,0.74574319,43393.0,43387.0,0.057652]
[1644543235628,0.2565918,43390.0,43387.0,0.057652]
[1644543235927,0.24574319,43392.0,43387.0,0.057652]
[1644543236188,0.24574319,43391.0,43387.0,0.057652]
[1644543236390,0.24574319,43392.0,43387.0,0.057652]
[1644543236589,0.46446483,43391.0,43387.0,0.057652]
[1644543236789,0.21872164,43391.0,43387.0,0.057652]
[1644543237195,0.46446483,43391.0,43387.0,0.057652]
[1644543238190,0.24574319,43390.0,43387.0,0.057652]
[1644543239095,0.24574319,43393.0,43388.0,0.08263348]
[1644543239291,0.06958187,43396.0,43388.0,0.08263348]
[1644543239292,0.24574319,43394.0,43388.0,0.19027348]
[1644543239493,0.24574319,43395.0,43389.0,0.115269]
[1644543239694,0.00045043,43396.0,43390.0,0.29743514]
[1644543239695,0.24619362,43396.0,43390.0,0.29743514]
[1644543239925,0.24619362,43396.0,43390.0,0.34743514]
[1644543239926,0.24574319,43395.0,43390.0,0.34743514]
[1644543240121,0.24574319,43395.0,43393.0,0.42481352]
[1644543240323,0.24574319,43395.0,43394.0,0.057638]
[1644543240624,0.00045046,43396.0,43395.0,0.0758425]
[1644543240821,0.00045046,43396.0,43395.0,0.33491584]
[1644543241020,0.22119365,43398.0,43395.0,0.33491584]
[1644543241221,0.29447263,43399.0,43395.0,0.33491584]
[1644543241420,0.00045049,43398.0,43395.0,0.33491584]
[1644543241920,0.00045049,43398.0,43395.0,0.45019684]
[1644543242121,0.29492312,43398.0,43395.0,0.60019684]
[1644543242324,0.29447263,43397.0,43395.0,0.60019684]
[1644543242721,0.29447263,43396.0,43395.0,0.60019684]
[1644543242921,0.29447263,43397.0,43395.0,0.689569]
[1644543243121,0.29447263,43397.0,43395.0,0.539569]
[1644543243321,0.3438459,43398.0,43395.0,0.589569]
[1644543243522,0.29524006,43396.0,43395.0,0.589569]
[1644543244673,0.34429605,43398.0,43395.0,0.30465316]
[1644543244877,0.29523264,43397.0,43395.0,0.5927072]
[1644543245277,0.29523264,43396.0,43395.0,0.06659419]
[1644543245974,0.29523264,43397.0,43396.0,0.057635]
[1644543246174,0.3438459,43398.0,43396.0,0.057635]
[1644543246374,0.34443457,43398.0,43395.0,0.06659419]
[1644543246574,0.34443457,43398.0,43395.0,0.18187019]
[1644543246775,0.3438459,43397.0,43395.0,0.12423419]
[1644543247433,0.3438459,43397.0,43396.0,0.057636]
[1644543247623,0.34443457,43398.0,43396.0,0.057636]
[1644543247822,0.34443457,43398.0,43395.0,0.23187219]
[1644543247823,0.45572379,43398.0,43395.0,0.23187219]
[1644543248022,0.3438459,43397.0,43395.0,0.23187219]
[1644543248622,0.3438459,43397.0,43395.0,0.34714467]
[1644543248826,0.2952764,43396.0,43395.0,0.34714467]
[1644543251283,0.2952764,43396.0,43395.0,0.28950667]
[1644543252182,0.2952764,43397.0,43395.0,0.28950667]
[1644543252586,0.2952764,43397.0,43395.0,0.22291248]
[1644543252784,0.2952764,43397.0,43395.0,0.17291248]
[1644543254952,0.2952764,43397.0,43396.0,0.31207782]
[1644543255145,0.29586507,43398.0,43396.0,0.31207782]
[1644543255342,0.29586507,43398.0,43397.0,0.057633]
[1644543255541,0.29586507,43398.0,43397.0,0.1152659]
[1644543255742,0.2952764,43398.0,43397.0,0.1152659]
[1644543256946,0.2952764,43398.0,43397.0,0.172905]
[1644543257146,0.2952764,43398.0,43397.0,0.115268]
[1644543257751,0.2952764,43398.0,43397.0,0.05]
[1644543258348,0.2952764,43398.0,43397.0,0.107638]
[1644543259575,0.2952764,43399.0,43397.0,0.280557]
[1644543260676,0.2952764,43399.0,43397.0,0.3381925]
[1644543260877,0.2952764,43398.0,43397.0,0.280557]
[1644543263323,0.06872164,43399.0,43397.0,0.280557]
[1644543264223,0.41256754,43399.0,43397.0,0.280557]
[1644543264522,0.06872164,43399.0,43397.0,0.280557]
[1644543265224,0.55,43398.0,43395.0,0.02712731]
[1644543265423,0.29524745,43397.0,43395.0,0.02712731]
[1644543265627,0.29524745,43396.0,43395.0,0.08476703]
[1644543266275,0.29524745,43396.0,43395.0,0.20003703]
[1644543266975,0.29524745,43396.0,43395.0,0.08476703]
[1644543267174,0.29524745,43396.0,43395.0,0.13476703]
[1644543267775,0.29524745,43396.0,43395.0,0.18476703]
[1644543268474,0.29524745,43396.0,43395.0,0.19399203]
[1644543268773,0.28024745,43396.0,43395.0,0.18476703]
[1644543270225,0.34896909,43396.0,43395.0,0.12712731]
[1644543270427,0.34896909,43396.0,43394.0,0.403472]
[1644543270428,0.34896909,43396.0,43394.0,0.07292]
[1644543270626,0.34896909,43396.0,43393.0,0.172924]
[1644543270627,0.323545,43393.0,43392.0,0.001293]
[1644543271024,0.6281879,43393.0,43392.0,0.001293]
[1644543271724,0.9720338,43393.0,43392.0,0.001293]
[1644543271925,1.32657692,43393.0,43392.0,0.001293]
[1644543272128,1.38423492,43393.0,43392.0,0.001293]
[1644543272324,1.07959202,43393.0,43392.0,0.001293]
[1644543272927,0.69838902,43393.0,43392.0,0.001293]
[1644543273772,1.02193402,43393.0,43392.0,0.001293]
[1644543274171,0.40846069,43393.0,43392.0,0.001293]
[1644543275378,1.0,43392.0,43391.0,0.00821492]
[1644543275578,1.15001757,43392.0,43391.0,0.00821492]
[1644543275778,1.30124548,43392.0,43391.0,0.00821492]
[1644543275978,1.15001757,43392.0,43391.0,0.00821492]
[1644543276177,1.30125828,43392.0,43391.0,0.00821492]
[1644543276377,1.63188272,43392.0,43391.0,0.00821492]
[1644543276578,1.58188272,43392.0,43391.0,0.00821492]
[1644543277822,0.381206,43391.0,43389.0,0.057661]
[1644543278023,0.05391757,43390.0,43389.0,0.057661]
[1644543278723,0.33747281,43390.0,43389.0,0.057661]
[1644543279325,0.05391757,43390.0,43389.0,0.057661]
[1644543279626,0.3355382,43390.0,43389.0,0.057661]
[1644543279826,0.65858531,43390.0,43389.0,0.057661]
[1644543280225,0.33504031,43390.0,43389.0,0.057661]
[1644543280724,0.65858531,43390.0,43389.0,0.057661]
[1644543281181,0.05341968,43390.0,43389.0,0.057661]
[1644543281774,0.37696468,43390.0,43389.0,0.057661]
[1644543281974,0.66102718,43390.0,43389.0,0.057661]
[1644543282375,0.70712718,43390.0,43389.0,0.057661]
[1644543282574,0.38358218,43390.0,43389.0,0.057661]
[1644543283575,0.09951968,43390.0,43389.0,0.057661]
[1644543285435,0.09951968,43390.0,43389.0,0.04476325]
[1644543286835,0.14951968,43390.0,43389.0,0.04476325]
[1644543288138,0.34456413,43390.0,43389.0,0.04476325]
[1644543288337,0.56452648,43391.0,43389.0,0.04476325]
[1644543288772,0.06872164,43391.0,43389.0,0.04476325]
[1644543289874,0.34456413,43393.0,43389.0,0.04476325]
[1644543290073,0.34456413,43392.0,43389.0,0.04476325]
[1644543290272,0.34456413,43393.0,43389.0,0.04476325]
[1644543290677,0.34419579,43393.0,43389.0,0.04476325]
[1644543291478,0.21872164,43391.0,43389.0,0.04476325]
[1644543291874,0.21872164,43391.0,43389.0,0.05399025]
[1644543292526,0.21872164,43391.0,43389.0,0.04476325]
[1644543292728,0.29531737,43390.0,43389.0,0.04476325]
[1644543293726,0.21872164,43391.0,43389.0,0.04476325]
[1644543293927,0.15124071,43393.0,43389.0,0.04476325]
[1644543294132,0.2953172,43391.0,43389.0,0.04476325]
[1644543294327,0.2953172,43390.0,43389.0,0.04476325]
[1644543294928,0.2953172,43390.0,43389.0,0.10241425]
[1644543295129,0.2953172,43390.0,43389.0,0.04476325]
[1644543295330,0.21872164,43391.0,43389.0,0.04476325]
[1644543296376,0.38700285,43390.0,43389.0,0.04476325]
[1644543297780,0.73155961,43390.0,43389.0,0.04476325]
[1644543297979,0.5632784,43391.0,43389.0,0.04476325]
[1644543299285,0.51404119,43391.0,43389.0,0.04476325]
[1644543299483,0.51404119,43391.0,43390.0,0.31613924]
[1644543299484,0.29531955,43391.0,43390.0,0.31613924]
[1644543299686,0.29531955,43393.0,43391.0,0.07449867]
[1644543299936,0.06913448,43394.0,43392.0,0.28935146]
[1644543300128,0.06056366,43398.0,43392.0,0.28935146]
[1644543300129,0.29531955,43397.0,43392.0,0.28935146]
[1644543300328,0.35531955,43398.0,43393.0,0.2175469]
[1644543300531,0.06045066,43398.0,43397.0,0.43410511]
[1644543300728,0.06045066,43398.0,43397.0,0.49174204]
[1644543300928,0.06045066,43398.0,43397.0,0.43410511]
[1644543301528,0.06,43398.0,43397.0,0.43410511]
[1644543301931,0.06,43398.0,43397.0,0.93410511]
[1644543302836,0.00056405,43400.0,43398.0,0.20365144]
[1644543303131,0.00056405,43400.0,43399.0,0.84026717]
[1644543303331,0.00056405,43400.0,43399.0,0.94026717]
[1644543303530,0.00056405,43400.0,43399.0,1.22475434]
[1644543303773,0.34447882,43406.0,43399.0,1.23397834]
[1644543303975,0.34447882,43409.0,43404.0,0.23899578]
[1644543304173,0.34447882,43409.0,43405.0,0.38169306]
[1644543304373,0.05012757,43412.0,43405.0,0.38169306]
[1644543304374,0.34447882,43410.0,43405.0,0.38169306]
[1644543304972,0.34447882,43411.0,43405.0,0.43931506]
[1644543305178,0.34447882,43410.0,43405.0,0.48931506]
[1644543305374,0.00056395,43410.0,43406.0,0.115239]
[1644543305676,0.12866065,43413.0,43408.0,0.8]
[1644543305877,0.04126103,43414.0,43409.0,0.85]
[1644543306077,0.15139807,43420.0,43412.0,0.05]
[1644543306273,0.48985589,43425.0,43424.0,0.08967915]
[1644543306676,0.48985589,43425.0,43424.0,0.07704419]
[1644543306677,0.25336173,43425.0,43424.0,0.07704419]
[1644543307930,0.21872164,43425.0,43423.0,0.45230318]
[1644543308126,0.21872164,43425.0,43423.0,0.44308218]
[1644543308726,0.21872164,43425.0,43423.0,0.39308218]
[1644543308928,0.21872164,43425.0,43423.0,0.45796884]
[1644543309327,0.21872164,43425.0,43423.0,0.95796884]
[1644543310329,0.01,43429.0,43423.0,1.18796884]
[1644543310532,0.01,43429.0,43424.0,0.161273]
[1644543310730,0.01,43429.0,43426.0,0.5]
[1644543310930,0.01,43429.0,43427.0,0.172751]
[1644543311179,0.01,43429.0,43428.0,0.05]
[1644543311480,0.01,43429.0,43428.0,0.28856314]
[1644543312081,0.005,43429.0,43428.0,0.78856314]
[1644543312282,0.005,43429.0,43428.0,0.83856314]
[1644543312580,0.005,43429.0,43428.0,1.14550673]
[1644543312779,0.005,43429.0,43428.0,0.94689738]
[1644543313379,0.005,43429.0,43428.0,0.74550673]
[1644543313980,0.005,43429.0,43428.0,0.43856314]
[1644543314178,0.0005916,43431.0,43429.0,0.057585]
[1644543314380,0.0005916,43431.0,43430.0,0.3332714]
[1644543314578,0.0005916,43431.0,43430.0,0.47261079]
[1644543314782,0.02,43443.0,43434.0,0.34850834]
[1644543315035,0.02,43443.0,43433.0,0.35684297]
[1644543315036,0.00236602,43439.0,43433.0,0.35684297]
[1644543315230,0.00236602,43439.0,43438.0,0.31051392]
[1644543315433,0.00236602,43439.0,43438.0,0.07084766]
[1644543315632,0.00236602,43439.0,43437.0,0.057579]
[1644543315832,0.28966929,43439.0,43437.0,0.057579]
[1644543316035,0.323545,43438.0,43437.0,0.057579]
[1644543316231,0.323545,43438.0,43430.0,0.0461]
[1644543316430,0.33730327,43439.0,43430.0,0.0461]
[1644543316829,0.28730327,43439.0,43430.0,0.0461]
[1644543317032,0.31217689,43431.0,43430.0,0.0461]
[1644543317232,0.31217689,43431.0,43422.0,0.44071232]
[1644543317432,0.31217689,43431.0,43424.0,0.057599]
[1644543318032,0.00045088,43437.0,43425.0,0.057595]
[1644543318232,0.28102611,43441.0,43430.0,0.08760616]
[1644543318430,0.05,43442.0,43432.0,0.057595]
[1644543318680,0.33831184,43434.0,43432.0,0.04120026]
[1644543319081,0.59412964,43434.0,43432.0,0.04120026]
[1644543319281,0.05,43433.0,43432.0,0.04120026]
[1644543319485,0.05,43433.0,43420.0,0.5]
[1644543319486,0.373545,43433.0,43420.0,0.5]
[1644543319683,0.05,43430.0,43422.0,0.057616]
[1644543319883,0.323545,43429.0,43422.0,0.057616]
[1644543320084,0.28047861,43426.0,43422.0,0.057616]
[1644543321082,0.28107068,43426.0,43422.0,0.057616]
[1644543321883,0.323545,43425.0,43422.0,0.287616]
[1644543322083,0.28107068,43426.0,43422.0,0.287616]
[1644543322525,0.323545,43425.0,43422.0,0.287616]
[1644543322930,0.28107068,43426.0,43422.0,0.287616]
[1644543323125,0.28047861,43426.0,43422.0,0.287616]
[1644543323326,0.28107068,43426.0,43422.0,0.287616]
[1644543324426,0.28047861,43426.0,43422.0,0.287616]
[1644543324630,0.28107068,43426.0,43422.0,0.287616]
[1644543324828,0.323545,43425.0,43422.0,0.287616]
[1644543325035,0.05,43423.0,43422.0,0.23]
[1644543325229,0.419645,43423.0,43422.0,0.23]
[1644543325632,0.477266,43423.0,43422.0,0.0165]
[1644543325830,0.927266,43423.0,43422.0,0.0165]
[1644543326031,0.63489577,43423.0,43422.0,0.0165]
[1644543326479,0.63489577,43423.0,43422.0,0.00971308]
[1644543327280,0.90143923,43423.0,43422.0,0.00971308]
[1644543327479,0.95143923,43423.0,43422.0,0.00971308]
[1644543327680,1.00143923,43423.0,43422.0,0.00971308]
[1644543328085,1.35143923,43423.0,43422.0,3.08e-06]
[1644543328486,0.11526977,43418.0,43404.0,0.20383014]
[1644543328683,0.05,43416.0,43404.0,0.20383014]
[1644543328883,0.05,43416.0,43407.0,0.11526]
[1644543329281,0.3471083,43415.0,43411.0,0.37924095]
[1644543329482,0.00054569,43412.0,43411.0,0.37924095]
[1644543329939,0.00054569,43412.0,43411.0,0.45962215]
[1644543330131,0.00054569,43412.0,43411.0,0.05763]